fUST/lending_fUST_20250801
["ID","MTS","AMOUNT","RATE_DAILY","PERIOD"]
[376544139,1754014232618,-465.9415821,0.00021292,2]
[376544141,1754014232627,-222.7,0.0002132,10]
[376544143,1754014232637,-266.21366658,0.00021323,2]
[376544145,1754014232647,-338.026412,0.00021323,2]
[376544147,1754014232656,-460.0,0.00021323,2]
[376544149,1754014232665,-460.0,0.00021323,2]
[376544151,1754014232675,-472.04222168,0.00021323,2]
[376544153,1754014232684,-460.0,0.00021323,2]
[376544155,1754014232694,-196.65936088,0.00021323,2]
[376544157,1754014232705,-557.05566508,0.00021323,2]
[376544160,1754014232714,-460.0,0.00021323,2]
[376544162,1754014232724,-461.85043064,0.00021323,2]
[376544164,1754014232734,-468.36151971,0.00021323,2]
[376544166,1754014232743,-460.0,0.00021323,2]
[376544167,1754014232752,-460.0,0.00021323,2]
[376544169,1754014232761,-412.88939773,0.00021323,2]
[376544171,1754014232770,-460.0,0.00021323,2]
[376544174,1754014232781,-465.34139798,0.00021323,2]
[376544176,1754014232789,-460.0,0.00021323,2]
[376544178,1754014232799,-262.66986286,0.00021323,2]
[376544180,1754014232808,-460.0,0.00021323,2]
[376544182,1754014232817,-460.0,0.00021323,2]
[376544184,1754014232826,-461.19,0.00021323,2]
[376544186,1754014232835,-460.0,0.00021323,2]
[376544188,1754014232845,-393.93213674,0.00021323,2]
[376544190,1754014232854,-460.0,0.00021323,2]
[376544192,1754014232864,-486.7,0.00021323,2]
[376544194,1754014232873,-460.0,0.00021323,2]
[376544196,1754014232882,-463.67367357,0.00021323,2]
[376544197,1754014232892,-460.0,0.00021323,2]
[376544199,1754014232901,-460.0,0.00021323,2]
[376544201,1754014232911,-460.0,0.00021323,2]
[376544204,1754014232923,-460.0,0.00021323,2]
[376544206,1754014232933,-460.0,0.00021323,2]
[376544208,1754014232942,-460.0,0.00021323,2]
[376544210,1754014232951,-460.0,0.00021323,2]
[376544212,1754014232960,-549.66444173,0.00021323,2]
[376544213,1754014232970,-466.0683641,0.00021323,2]
[376544214,1754014232979,-468.52844558,0.00021323,2]
[376544215,1754014232988,-618.37,0.00021323,2]
[376544217,1754014232998,-648.07,0.00021323,2]
[376544219,1754014233007,-464.72221821,0.00021323,2]
[376544220,1754014233016,-460.0,0.00021323,2]
[376544221,1754014233026,-460.0,0.00021323,2]
[376544222,1754014233036,-612.49,0.00021323,2]
[376544223,1754014233046,-460.0,0.00021323,2]
[376544224,1754014233056,-581.18,0.00021323,2]
[376544225,1754014233067,-887.31,0.00021323,2]
[376544226,1754014233078,-463.98058374,0.00021323,2]
[376544227,1754014233088,-460.0,0.00021323,2]
[376544228,1754014233098,-460.0,0.00021323,2]
[376544229,1754014233108,-460.0,0.00021323,2]
[376544230,1754014233117,-460.0,0.00021323,2]
[376544231,1754014233128,-460.0,0.00021323,2]
[376544232,1754014233138,-460.0,0.00021323,2]
[376544233,1754014233148,-460.0,0.00021323,2]
[376544234,1754014233158,-462.88752336,0.00021323,2]
[376544235,1754014233167,-460.0,0.00021323,2]
[376544236,1754014233177,-460.0,0.00021323,2]
[376544237,1754014233188,-460.0,0.00021323,2]
[376544238,1754014233198,-460.0,0.00021323,2]
[376544239,1754014233209,-460.0,0.00021323,2]
[376544240,1754014233220,-460.0,0.00021323,2]
[376544241,1754014233230,-547.26,0.00021323,2]
[376544242,1754014233240,-460.0,0.00021323,2]
[376544243,1754014233249,-460.0,0.00021323,2]
[376544244,1754014233261,-460.0,0.00021323,2]
[376544245,1754014233270,-460.0,0.00021323,2]
[376544246,1754014233281,-633.58,0.00021323,2]
[376544247,1754014233291,-460.0,0.00021323,2]
[376544248,1754014233301,-460.0,0.00021323,2]
[376544249,1754014233311,-918.59,0.00021323,2]
[376544250,1754014233321,-570.29,0.00021323,2]
[376544251,1754014233331,-460.0,0.00021323,2]
[376544252,1754014233341,-735.82,0.00021323,2]
[376544253,1754014233351,-460.0,0.00021323,2]
[376544254,1754014233361,-460.0,0.00021323,2]
[376544255,1754014233370,-498.93,0.00021323,2]
[376544256,1754014233380,-500.59,0.00021323,2]
[376544257,1754014233390,-460.0,0.00021323,2]
[376544258,1754014233401,-3000.0,0.0002133,2]
[376544259,1754014233412,-460.0,0.00021333,2]
[376544260,1754014233421,-632.03,0.00021333,2]
[376544261,1754014233430,-956.11,0.00021333,2]
[376544262,1754014233440,-1577.97,0.00021333,2]
[376544263,1754014233452,-460.0,0.00021333,2]
[376544264,1754014233462,-460.0,0.00021333,2]
[376544265,1754014233472,-460.0,0.00021333,2]
[376544266,1754014233483,-460.0,0.00021333,2]
[376544267,1754014233492,-555.17,0.00021333,2]
[376544268,1754014233502,-1515.29,0.00021333,2]
[376544269,1754014233512,-500.0,0.00021334,2]
[376544270,1754014233522,-3000.0,0.0002134,2]
[376544271,1754014233535,-3000.0,0.0002135,2]
[376544272,1754014233545,-200.0,0.00021351,15]
[376544273,1754014233555,-200.0,0.00021351,15]
[376544274,1754014233565,-200.0,0.00021351,15]
[376544275,1754014233575,-200.0,0.00021351,15]
[376544276,1754014233585,-200.0,0.00021351,15]
[376544277,1754014233595,-4198.541253,0.0002136,2]
[376544278,1754014233605,-500.87773667,0.00021373,2]
[376544279,1754014233614,-500.87442787,0.00021373,2]
[376544280,1754014233626,-501.07932726,0.00021373,2]
[376544281,1754014233635,-158.50283985,0.00021373,2]
[376544282,1754014233645,-500.0,0.00021373,2]
[376544283,1754014233654,-500.0,0.00021373,2]
[376544284,1754014233663,-524.8793285,0.00021373,2]
[376544285,1754014233673,-501.60980481,0.00021373,2]
[376544286,1754014233683,-500.0,0.00021373,2]
[376544287,1754014233692,-501.64123158,0.00021373,2]
[376544288,1754014233704,-500.0,0.00021373,2]
[376544289,1754014233714,-500.0,0.00021373,2]
[376544290,1754014233723,-500.0,0.00021373,2]
[376544291,1754014233733,-500.0,0.00021373,2]
[376544292,1754014233743,-460.0,0.00021481,2]
[376544293,1754014233753,-524.04,0.00021481,2]
[376544294,1754014233762,-1788.16,0.00021481,2]
[376544295,1754014233772,-460.0,0.00021555,2]
[376544296,1754014233781,-4443.87,0.00021555,2]
[376544297,1754014233791,-2629.49,0.00021566,2]
[376544298,1754014233801,-578.56,0.00021566,2]
[376544299,1754014233812,-2282.47,0.00021566,2]
[376544300,1754014233821,-460.0,0.00021566,2]
[376544301,1754014233831,-467.438705,0.00021566,2]
[376544302,1754014233841,-2368.28,0.00021566,2]
[376544303,1754014233976,-460.0,0.00021566,2]
[376544304,1754014233986,-609.28,0.00021566,2]
[376544305,1754014233995,-460.0,0.00021566,2]
[376544306,1754014234005,-517.59,0.00021566,2]
[376544307,1754014234015,-691.51,0.00021566,2]
[376544308,1754014234025,-1612.93,0.00021566,2]
[376544309,1754014234034,-460.0,0.00021566,2]
[376544310,1754014234044,-200.0,0.00021573,2]
[376544311,1754014234053,-501.11746045,0.00021573,2]
[376544312,1754014234063,-500.0,0.00021573,2]
[376544313,1754014234073,-500.0,0.00021573,2]
[376544314,1754014234082,-311.64222351,0.00021588,2]
[376544315,1754014234091,-460.0,0.00021597,2]
[376544316,1754014234100,-460.0,0.00021597,2]
[376544317,1754014234110,-460.0,0.00021597,2]
[376544318,1754014234119,-460.0,0.00021597,2]
[376544319,1754014234129,-469.97691224,0.00021597,2]
[376544320,1754014234138,-226.13177791,0.00021597,2]
[376544321,1754014234147,-460.0,0.00021597,2]
[376544322,1754014234157,-457.72338019,0.00021597,2]
[376544323,1754014234272,-2.27661981,0.00021597,2]
[376544324,1754014234282,-589.91371468,0.00021597,2]
[376544325,1754014234293,-564.72278434,0.00021597,2]
[376544326,1754014234302,-460.0,0.00021597,2]
[376544327,1754014234312,-416.60906014,0.00021597,2]
[376544328,1754014234324,-43.39093986,0.00021597,2]
[376544329,1754014234333,-467.46732705,0.00021597,2]
[376544330,1754014234342,-460.0,0.00021597,2]
[376544331,1754014234353,-461.19,0.00021597,2]
[376544332,1754014234362,-481.82539565,0.00021597,2]
[376544333,1754014234372,-460.0,0.00021597,2]
[376544334,1754014234381,-486.7,0.00021597,2]
[376544335,1754014234390,-460.0,0.00021597,2]
[376544336,1754014234400,-460.0,0.00021597,2]
[376544337,1754014234410,-460.0,0.00021597,2]
[376544338,1754014234419,-460.0,0.00021597,2]
[376544339,1754014234429,-460.0,0.00021597,2]
[376544340,1754014234439,-460.0,0.00021597,2]
[376544341,1754014234449,-446.22804369,0.00021597,2]
[376544342,1754014234459,-210.34730726,0.00021597,2]
[376544343,1754014234469,-618.37,0.00021597,2]
[376544344,1754014234479,-648.07,0.00021597,2]
[376544345,1754014234488,-471.92659909,0.00021597,2]
[376544346,1754014234497,-460.0,0.00021597,2]
[376544347,1754014234507,-612.49,0.00021597,2]
[376544348,1754014234516,-581.18,0.00021597,2]
[376544349,1754014234526,-887.31,0.00021597,2]
[376544350,1754014234535,-468.86534951,0.00021597,2]
[376544351,1754014234546,-480.00359967,0.00021597,2]
[376544352,1754014234555,-460.0,0.00021597,2]
[376544353,1754014234565,-468.48737926,0.00021597,2]
[376544354,1754014234575,-465.16657325,0.00021597,2]
[376544355,1754014234584,-460.0,0.00021597,2]
[376544356,1754014234594,-460.0,0.00021597,2]
[376544357,1754014234603,-460.0,0.00021597,2]
[376544358,1754014234613,-547.26,0.00021597,2]
[376544359,1754014234623,-460.0,0.00021597,2]
[376544360,1754014234633,-460.0,0.00021597,2]
[376544361,1754014234643,-460.0,0.00021597,2]
[376544362,1754014234652,-633.58,0.00021597,2]
[376544363,1754014234662,-460.0,0.00021597,2]
[376544364,1754014234672,-460.0,0.00021597,2]
[376544365,1754014234682,-918.59,0.00021597,2]
[376544366,1754014234692,-570.29,0.00021597,2]
[376544367,1754014234702,-460.0,0.00021597,2]
[376544368,1754014234712,-735.82,0.00021597,2]
[376544369,1754014234722,-460.0,0.00021597,2]
[376544370,1754014234731,-460.0,0.00021597,2]
[376544371,1754014234740,-498.93,0.00021597,2]
[376544372,1754014234750,-500.59,0.00021597,2]
[376544373,1754014234760,-460.0,0.00021597,2]
[376544374,1754014234770,-272.5,0.00021603,4]
[376544375,1754014234779,-460.0,0.00021607,2]
[376544376,1754014234788,-632.03,0.00021607,2]
[376544377,1754014234798,-956.11,0.00021607,2]
[376544378,1754014234807,-1577.97,0.00021607,2]
[376544379,1754014234816,-460.0,0.00021607,2]
[376544380,1754014234827,-460.0,0.00021607,2]
[376544381,1754014234836,-460.0,0.00021607,2]
[376544382,1754014234846,-460.0,0.00021607,2]
[376544383,1754014234855,-555.17,0.00021607,2]
[376544384,1754014234868,-1515.29,0.00021607,2]
[376544385,1754014234878,-510.22552918,0.00021608,2]
[376544386,1754014234887,-505.92165578,0.00021621,2]
[376544387,1754014234896,-841.53699354,0.00021687,2]
[376544388,1754014234905,-160.0,0.00021687,2]
[376544389,1754014234915,-526.925583,0.00021687,2]
[376544390,1754014234924,-312.16666667,0.00021687,2]
[376544391,1754014234933,-160.0,0.00021687,2]
[376544392,1754014234943,-160.0,0.00021687,2]
[376544393,1754014234952,-160.0,0.00021687,2]
[376544394,1754014234962,-160.638,0.00021742,2]
[376544395,1754014234971,-460.0,0.00021755,2]
[376544396,1754014234981,-524.04,0.00021755,2]
[376544397,1754014234991,-1788.16,0.00021755,2]
[376544398,1754014235001,-460.0,0.00021829,2]
[376544399,1754014235010,-4443.87,0.00021829,2]
[376544400,1754014235019,-2629.49,0.0002184,2]
[376544401,1754014235029,-578.56,0.0002184,2]
[376544402,1754014235038,-2282.47,0.0002184,2]
[376544403,1754014235047,-460.0,0.0002184,2]
[376544404,1754014235056,-2368.28,0.0002184,2]
[376544405,1754014235066,-460.0,0.0002184,2]
[376544406,1754014235075,-609.28,0.0002184,2]
[376544407,1754014235084,-460.0,0.0002184,2]
[376544408,1754014235094,-517.59,0.0002184,2]
[376544409,1754014235103,-691.51,0.0002184,2]
[376544410,1754014235112,-1612.93,0.0002184,2]
[376544411,1754014235121,-460.0,0.0002184,2]
[376544412,1754014235132,-479.01145939,0.00021871,2]
[376544413,1754014235141,-465.22541903,0.00021871,2]
[376544414,1754014235151,-460.0,0.00021871,2]
[376544415,1754014235160,-460.0,0.00021871,2]
[376544416,1754014235170,-460.0,0.00021871,2]
[376544417,1754014235179,-460.0,0.00021871,2]
[376544418,1754014235188,-460.0,0.00021871,2]
[376544419,1754014235198,-140.18069162,0.00021871,2]
[376544420,1754014235222,-319.81930838,0.00021871,2]
[376544421,1754014235232,-208.77702082,0.00021871,2]
[376544422,1754014235241,-461.19,0.00021871,2]
[376544423,1754014235250,-460.0,0.00021871,2]
[376544424,1754014235259,-486.7,0.00021871,2]
[376544425,1754014235268,-460.0,0.00021871,2]
[376544426,1754014235278,-460.0,0.00021871,2]
[376544427,1754014235289,-460.0,0.00021871,2]
[376544428,1754014235300,-460.0,0.00021871,2]
[376544429,1754014235309,-460.0,0.00021871,2]
[376544430,1754014235318,-618.37,0.00021871,2]
[376544431,1754014235328,-648.07,0.00021871,2]
[376544432,1754014235337,-460.0,0.00021871,2]
[376544433,1754014235346,-612.49,0.00021871,2]
[376544434,1754014235355,-581.18,0.00021871,2]
[376544435,1754014235364,-887.31,0.00021871,2]
[376544436,1754014235373,-317.50998748,0.00021871,2]
[376544437,1754014235382,-460.0,0.00021871,2]
[376544438,1754014235392,-460.0,0.00021871,2]
[376544439,1754014235401,-460.0,0.00021871,2]
[376544440,1754014235410,-547.26,0.00021871,2]
[376544441,1754014235419,-460.0,0.00021871,2]
[376544442,1754014235428,-460.0,0.00021871,2]
[376544443,1754014235437,-199.62015489,0.00021871,2]
[376544444,1754014235446,-633.58,0.00021871,2]
[376544445,1754014235455,-469.92680314,0.00021871,2]
[376544446,1754014235465,-918.59,0.00021871,2]
[376544447,1754014235473,-570.29,0.00021871,2]
[376544448,1754014235483,-460.0,0.00021871,2]
[376544449,1754014235492,-735.82,0.00021871,2]
[376544450,1754014235501,-460.0,0.00021871,2]
[376544451,1754014235510,-480.17479267,0.00021871,2]
[376544452,1754014235519,-498.93,0.00021871,2]
[376544453,1754014235529,-500.59,0.00021871,2]
[376544454,1754014235538,-460.0,0.00021871,2]
[376544455,1754014235547,-460.0,0.00021881,2]
[376544456,1754014235556,-632.03,0.00021881,2]
[376544457,1754014235565,-956.11,0.00021881,2]
[376544458,1754014235575,-1577.97,0.00021881,2]
[376544459,1754014235584,-460.0,0.00021881,2]
[376544460,1754014235593,-460.0,0.00021881,2]
[376544461,1754014235603,-460.0,0.00021881,2]
[376544462,1754014235614,-460.0,0.00021881,2]
[376544463,1754014235624,-555.17,0.00021881,2]
[376544464,1754014235635,-1515.29,0.00021881,2]
[376544465,1754014235646,-343.10671334,0.00021917,2]
[376544466,1754014235656,-500.0,0.00021917,2]
[376544467,1754014235668,-500.0,0.00021917,2]
[376544468,1754014235678,-500.0,0.00021917,2]
[376544469,1754014235690,-500.0,0.00021917,2]
[376544470,1754014235701,-200.0,0.00021918,2]
[376544471,1754014235718,-635.63425894,0.00021921,2]
[376544472,1754014235730,-1000.0,0.00021921,2]
[376544473,1754014235742,-1000.0,0.00021921,2]
[376544474,1754014235753,-1000.0,0.00021921,2]
[376544475,1754014235764,-212.32287949,0.00021921,2]
[376544476,1754014235774,-5000.0,0.00021992,2]
[376544477,1754014235786,-343.10671334,0.00021993,2]
[376544478,1754014235797,-461.69329896,0.00021998,2]
[376544479,1754014235808,-500.0,0.00021998,2]
[376544480,1754014235818,-460.0,0.00021998,2]
[376544481,1754014235828,-460.0,0.00021998,2]
[376544482,1754014235839,-460.0,0.00021998,2]
[376544483,1754014235849,-777.4,0.00021998,2]
[376544484,1754014235859,-460.0,0.00021998,2]
[376544485,1754014235869,-460.0,0.00021998,2]
[376544486,1754014235972,-460.0,0.00021998,2]
[376544487,1754014235982,-460.0,0.00021998,2]
[376544488,1754014235992,-463.86161447,0.00021998,2]
[376544489,1754014236001,-460.0,0.00021998,2]
[376544490,1754014236011,-460.0,0.00021998,2]
[376544491,1754014236021,-517.4991079,0.00021998,2]
[376544492,1754014236030,-460.0,0.00021998,2]
[376544493,1754014236039,-460.0,0.00021998,2]
[376544494,1754014236048,-460.0,0.00021998,2]
[376544495,1754014236059,-464.22431127,0.00021998,2]
[376544496,1754014236068,-464.488028,0.00021998,2]
[376544497,1754014236077,-460.0,0.00021998,2]
[376544498,1754014236087,-468.27247879,0.00021998,2]
[376544499,1754014236097,-460.0,0.00021998,2]
[376544500,1754014236106,-460.0,0.00021998,2]
[376544501,1754014236115,-460.0,0.00021998,2]
[376544502,1754014236125,-460.0,0.00021998,2]
[376544503,1754014236134,-462.19055063,0.00021998,2]
[376544504,1754014236144,-460.0,0.00021998,2]
[376544505,1754014236153,-460.0,0.00021998,2]
[376544506,1754014236162,-460.0,0.00021998,2]
[376544507,1754014236172,-460.0,0.00021998,2]
[376544508,1754014236181,-1030.14,0.00021998,2]
[376544509,1754014236191,-460.0,0.00021998,2]
[376544510,1754014236200,-460.0,0.00021998,2]
[376544511,1754014236214,-465.51815106,0.00021998,2]
[376544512,1754014236224,-460.0,0.00021998,2]
[376544513,1754014236233,-460.0,0.00021998,2]
[376544514,1754014236243,-460.0,0.00021998,2]
[376544515,1754014236253,-858.39,0.00021998,2]
[376544516,1754014236262,-460.0,0.00021998,2]
[376544517,1754014236272,-463.28090807,0.00021998,2]
[376544518,1754014236282,-460.0,0.00021998,2]
[376544519,1754014236292,-460.0,0.00021998,2]
[376544520,1754014236301,-460.0,0.00021998,2]
[376544521,1754014236309,-574.44,0.00021998,2]
[376544522,1754014236318,-455.40026359,0.00021998,2]
[376544523,1754014236328,-460.0,0.00021998,2]
[376544524,1754014236337,-460.0,0.00021998,2]
[376544525,1754014236346,-314.9923924,0.00021998,2]
[376544526,1754014236355,-460.0,0.00021998,2]
[376544527,1754014236364,-500.0,0.00021998,2]
[376544528,1754014236374,-460.0,0.00021999,2]
[376544529,1754014236383,-1517.58,0.00021999,2]
[376544530,1754014236392,-1259.14,0.00022,7]
[376544531,1754014236402,-460.0,0.00022029,2]
[376544532,1754014236410,-524.04,0.00022029,2]
[376544533,1754014236419,-1788.16,0.00022029,2]
[376544534,1754014236428,-160.0,0.00022035,2]
[376544535,1754014236438,-214.99831783,0.00022035,2]
[376544536,1754014236447,-160.0,0.00022035,2]
[376544537,1754014236459,-160.0,0.00022035,2]
[376544538,1754014236468,-160.0,0.00022035,2]
[376544539,1754014236485,-216.18812866,0.00022035,2]
[376544540,1754014236505,-460.682337,0.00022035,2]
[376544541,1754014236514,-160.0,0.00022035,2]
[376544542,1754014236523,-231.48161788,0.00022035,2]
[376544543,1754014236532,-12642.0599901,0.00022039,2]
[376544544,1754014236542,-272.5,0.00022095,4]
[376544545,1754014236551,-460.0,0.00022103,2]
[376544546,1754014236560,-4443.87,0.00022103,2]
[376544547,1754014236569,-311.64222351,0.00022106,2]
[376544548,1754014236578,-465.36848844,0.00022107,2]
[376544549,1754014236587,-460.0,0.00022107,2]
[376544550,1754014236596,-2629.49,0.00022114,2]
[376544551,1754014236605,-578.56,0.00022114,2]
[376544552,1754014236614,-2282.47,0.00022114,2]
[376544553,1754014236622,-460.0,0.00022114,2]
[376544554,1754014236631,-2368.28,0.00022114,2]
[376544555,1754014236641,-460.0,0.00022114,2]
[376544556,1754014236650,-609.28,0.00022114,2]
[376544557,1754014236659,-460.0,0.00022114,2]
[376544558,1754014236668,-517.59,0.00022114,2]
[376544559,1754014236678,-691.51,0.00022114,2]
[376544560,1754014236687,-1612.93,0.00022114,2]
[376544561,1754014236696,-460.0,0.00022114,2]
[376544562,1754014236707,-500.0,0.00022127,2]
[376544563,1754014236717,-462.62974855,0.00022128,2]
[376544564,1754014236727,-465.47281329,0.00022128,2]
[376544565,1754014236737,-481.01668747,0.00022128,2]
[376544566,1754014236747,-460.0,0.00022128,2]
[376544567,1754014236756,-590.60695769,0.00022128,2]
[376544568,1754014236766,-447.91739431,0.00022128,2]
[376544569,1754014236776,-442.72988855,0.00022128,2]
[376544579,1754014237915,-241.95160117,0.00021007,2]
[376544580,1754014237925,-460.0,0.00021018,2]
[376544581,1754014237934,-460.0,0.00021018,2]
[376544582,1754014237944,-500.0,0.00021871,2]
[376544583,1754014237955,-484.53,0.00022,2]
[376544584,1754014237964,-500.0,0.00022127,2]
[376544585,1754014237973,-702.56787958,0.00022127,2]
[376544586,1754014237985,-632.32266526,0.00022127,2]
[376544587,1754014237994,-1334.89054484,0.00022127,2]
[376544588,1754014238003,-1334.89054484,0.00022127,2]
[376544589,1754014238012,-1334.89054484,0.00022127,2]
[376544590,1754014238021,-461.83786884,0.00022127,2]
[376544591,1754014238031,-1334.89054484,0.00022127,2]
[376544592,1754014238040,-1334.89054484,0.00022127,2]
[376544593,1754014238050,-1334.89054484,0.00022127,2]
[376544594,1754014238060,-1334.89054484,0.00022127,2]
[376544595,1754014238070,-1334.89054484,0.00022127,2]
[376544596,1754014238079,-1334.89054484,0.00022127,2]
[376544597,1754014238089,-1334.89054484,0.00022127,2]
[376544598,1754014238099,-1334.89054484,0.00022127,2]
[376544599,1754014238108,-1334.89054484,0.00022127,2]
[376544600,1754014238117,-1334.89054484,0.00022127,2]
[376544601,1754014238126,-1334.89054484,0.00022127,2]
[376544602,1754014238135,-1334.89054484,0.00022127,2]
[376544603,1754014238144,-1334.89054484,0.00022127,2]
[376544604,1754014238154,-1334.89054484,0.00022127,2]
[376544605,1754014238163,-1334.89054484,0.00022127,2]
[376544606,1754014238172,-1334.89054484,0.00022127,2]
[376544607,1754014238181,-17.27011145,0.00022128,2]
[376544608,1754014238190,-462.80567038,0.00022128,2]
[376544609,1754014238200,-462.60105264,0.00022128,2]
[376544610,1754014238210,-461.92877592,0.00022128,2]
[376544611,1754014238222,-460.0,0.00022128,2]
[376544612,1754014238232,-460.0,0.00022128,2]
[376544613,1754014238241,-299.13959317,0.00022128,2]
[376544614,1754014238250,-463.39596413,0.00022128,2]
[376544615,1754014238259,-462.14480825,0.00022128,2]
[376544617,1754014238269,-462.55938736,0.00022128,2]
[376544619,1754014238278,-461.22476657,0.00022128,2]
[376544621,1754014238288,-565.911277,0.00022128,2]
[376544623,1754014238298,-460.0,0.00022128,2]
[376544625,1754014238307,-241.03151992,0.00022128,2]
[376544627,1754014238317,-463.5884753,0.00022128,2]
[376544629,1754014238326,-460.0,0.00022128,2]
[376544631,1754014238335,-460.0,0.00022128,2]
[376544635,1754014238434,-460.0,0.00022128,2]
[376544636,1754014238443,-460.0,0.00022128,2]
[376544637,1754014238454,-474.02245722,0.00022128,2]
[376544638,1754014238463,-462.10827989,0.00022128,2]
[376544639,1754014238473,-460.0,0.00022128,2]
[376544640,1754014238483,-460.0,0.00022128,2]
[376544641,1754014238493,-460.0,0.00022128,2]
[376544642,1754014238502,-461.15813106,0.00022128,2]
[376544643,1754014238511,-460.0,0.00022128,2]
[376544644,1754014238521,-462.58103386,0.00022128,2]
[376544645,1754014238530,-560.7721542,0.00022128,2]
[376544646,1754014238540,-460.0,0.00022128,2]
[376544647,1754014238549,-460.0,0.00022128,2]
[376544648,1754014238559,-322.68017547,0.00022128,2]
[376544649,1754014238569,-460.0,0.00022128,2]
[376544650,1754014238578,-460.0,0.00022128,2]
[376544651,1754014238588,-460.0,0.00022128,2]
[376544652,1754014238597,-139.68644204,0.00022128,2]
[376544653,1754014238609,-325.15288915,0.00022128,2]
[376544654,1754014238618,-464.63271098,0.00022128,2]
[376544655,1754014238627,-460.08668217,0.00022128,2]
[376544656,1754014238636,-460.0,0.00022128,2]
[376544657,1754014238645,-473.88431594,0.00022128,2]
[376544658,1754014238654,-460.0,0.00022128,2]
[376544659,1754014238663,-500.29230838,0.00022128,2]
[376544660,1754014238672,-460.0,0.00022128,2]
[376544661,1754014238682,-460.0,0.00022128,2]
[376544662,1754014238691,-462.2049829,0.00022128,2]
[376544663,1754014238700,-460.0,0.00022128,2]
[376544664,1754014238709,-460.0,0.00022128,2]
[376544665,1754014238718,-460.0,0.00022128,2]
[376544666,1754014238727,-402.57159691,0.00022128,2]
[376544667,1754014238736,-460.0,0.00022128,2]
[376544668,1754014238745,-460.0,0.00022128,2]
[376544669,1754014238754,-220.82231982,0.00022128,2]
[376544670,1754014238762,-460.0,0.00022128,2]
[376544671,1754014238771,-460.0,0.00022128,2]
[376544672,1754014238780,-464.79128366,0.00022128,2]
[376544673,1754014238790,-456.13567663,0.00022128,2]
[376544674,1754014238798,-460.0,0.00022128,2]
[376544675,1754014238807,-460.0,0.00022128,2]
[376544676,1754014238817,-460.0,0.00022128,2]
[376544677,1754014238825,-460.0,0.00022128,2]
[376544678,1754014238834,-461.47516457,0.00022128,2]
[376544679,1754014238844,-469.09989245,0.00022128,2]
[376544680,1754014238853,-450.0,0.00022128,2]
[376544681,1754014238862,-460.0,0.00022128,2]
[376544682,1754014238872,-460.0,0.00022128,2]
[376544683,1754014238881,-460.0,0.00022128,2]
[376544684,1754014238890,-460.83209775,0.00022128,2]
[376544685,1754014238899,-460.0,0.00022128,2]
[376544686,1754014238915,-497.18609286,0.00022128,2]
[376544687,1754014238925,-500.0,0.00022131,2]
[376544688,1754014238934,-500.0,0.00022137,2]
[376544689,1754014238943,-460.0,0.00022138,2]
[376544690,1754014238953,-460.0,0.00022138,2]
[376544691,1754014238962,-460.0,0.00022138,2]
[376544692,1754014238970,-2983.39198583,0.00022138,2]
[376544693,1754014238982,-763.062,0.00022138,2]
[376544694,1754014238993,-285.40265263,0.00022138,2]
[376544695,1754014239005,-413.2669033,0.00022138,2]
[376544696,1754014239016,-491.23645824,0.00022138,2]
[376544697,1754014239025,-500.0,0.00022145,2]